fUST/lending_fUST_20250601
["ID","MTS","AMOUNT","RATE_DAILY","PERIOD"]
[363584759,1748776254717,-430.0,0.00018356,2]
[363584761,1748776254727,-430.0,0.00018356,2]
[363584763,1748776254736,-430.0,0.00018356,2]
[363584765,1748776254746,-430.0,0.00018356,2]
[363584767,1748776254755,-430.0,0.00018356,2]
[363584769,1748776254765,-430.0,0.00018356,2]
[363584771,1748776254775,-430.0,0.00018356,2]
[363584773,1748776254784,-430.0,0.00018356,2]
[363584775,1748776254794,-430.0,0.00018356,2]
[363584777,1748776254803,-430.0,0.00018356,2]
[363584779,1748776254812,-430.0,0.00018356,2]
[363584781,1748776254821,-430.0,0.00018356,2]
[363584783,1748776254831,-689.6,0.00018356,2]
[363584785,1748776254841,-942.84,0.00018356,2]
[363584787,1748776254851,-666.8,0.00018356,2]
[363584789,1748776254860,-819.66,0.00018356,2]
[363584791,1748776254870,-430.0,0.00018356,2]
[363584793,1748776254879,-334.36828676,0.00018356,2]
[363584795,1748776254888,-430.0,0.00018356,2]
[363584797,1748776254897,-1190.85,0.00018356,2]
[363584799,1748776254907,-430.0,0.00018356,2]
[363584801,1748776254916,-430.0,0.00018356,2]
[363584803,1748776254926,-265.86,0.00018356,2]
[363584805,1748776254935,-430.0,0.00018356,2]
[363584807,1748776254945,-430.0,0.00018356,2]
[363584808,1748776254955,-430.0,0.00018356,2]
[363584810,1748776254965,-461.65,0.00018356,2]
[363584813,1748776254975,-430.0,0.00018356,2]
[363584815,1748776254984,-430.0,0.00018356,2]
[363584817,1748776254994,-430.0,0.00018356,2]
[363584819,1748776255003,-430.0,0.00018356,2]
[363584820,1748776255013,-430.0,0.00018356,2]
[363584823,1748776255023,-430.0,0.00018356,2]
[363584824,1748776255032,-430.0,0.00018356,2]
[363584826,1748776255042,-515.48,0.00018356,2]
[363584828,1748776255051,-430.0,0.00018356,2]
[363584830,1748776255061,-430.0,0.00018356,2]
[363584832,1748776255070,-488.83,0.00018356,2]
[363584834,1748776255080,-912.63,0.00018356,2]
[363584836,1748776255089,-430.0,0.00018356,2]
[363584839,1748776255099,-430.0,0.00018356,2]
[363584840,1748776255108,-707.93,0.00018356,2]
[363584842,1748776255118,-1578.39,0.00018356,2]
[363584844,1748776255128,-430.0,0.00018356,2]
[363584847,1748776255137,-430.0,0.00018356,2]
[363584848,1748776255150,-977.32,0.00018356,2]
[363584851,1748776255160,-430.0,0.00018356,2]
[363584853,1748776255170,-430.0,0.00018356,2]
[363584854,1748776255179,-1118.68,0.00018356,2]
[363584856,1748776255189,-817.55931874,0.0001859,2]
[363584858,1748776255198,-430.0,0.0001863,2]
[363584860,1748776255208,-430.0,0.0001863,2]
[363584862,1748776255217,-430.0,0.0001863,2]
[363584864,1748776255227,-430.0,0.0001863,2]
[363584867,1748776255238,-430.0,0.0001863,2]
[363584869,1748776255247,-430.0,0.0001863,2]
[363584871,1748776255257,-430.0,0.0001863,2]
[363584873,1748776255266,-689.6,0.0001863,2]
[363584875,1748776255276,-942.84,0.0001863,2]
[363584877,1748776255286,-666.8,0.0001863,2]
[363584879,1748776255295,-819.66,0.0001863,2]
[363584881,1748776255304,-430.0,0.0001863,2]
[363584883,1748776255314,-1190.85,0.0001863,2]
[363584885,1748776255324,-430.0,0.0001863,2]
[363584887,1748776255334,-430.0,0.0001863,2]
[363584888,1748776255343,-430.0,0.0001863,2]
[363584891,1748776255353,-430.0,0.0001863,2]
[363584892,1748776255363,-430.0,0.0001863,2]
[363584895,1748776255374,-461.65,0.0001863,2]
[363584897,1748776255384,-430.0,0.0001863,2]
[363584898,1748776255393,-430.0,0.0001863,2]
[363584901,1748776255405,-430.0,0.0001863,2]
[363584902,1748776255415,-430.0,0.0001863,2]
[363584905,1748776255425,-430.0,0.0001863,2]
[363584907,1748776255435,-430.0,0.0001863,2]
[363584909,1748776255445,-515.48,0.0001863,2]
[363584911,1748776255455,-430.0,0.0001863,2]
[363584913,1748776255464,-430.0,0.0001863,2]
[363584915,1748776255473,-912.63,0.0001863,2]
[363584916,1748776255483,-430.0,0.0001863,2]
[363584918,1748776255492,-430.0,0.0001863,2]
[363584920,1748776255502,-707.93,0.0001863,2]
[363584922,1748776255511,-1578.39,0.0001863,2]
[363584924,1748776255521,-183.15,0.0001863,2]
[363584926,1748776255531,-977.32,0.0001863,2]
[363584928,1748776255541,-430.0,0.0001863,2]
[363584930,1748776255551,-430.0,0.0001863,2]
[363584932,1748776255560,-1118.68,0.0001863,2]
[363584934,1748776255570,-817.55931874,0.00018831,2]
[363584936,1748776255581,-1471.1353111,0.000189,2]
[363584938,1748776255591,-430.0,0.00018904,2]
[363584940,1748776255600,-430.0,0.00018904,2]
[363584942,1748776255609,-430.0,0.00018904,2]
[363584944,1748776255619,-430.0,0.00018904,2]
[363584946,1748776255630,-430.0,0.00018904,2]
[363584949,1748776255639,-689.6,0.00018904,2]
[363584951,1748776255649,-942.84,0.00018904,2]
[363584952,1748776255658,-666.8,0.00018904,2]
[363584955,1748776255670,-819.66,0.00018904,2]
[363584956,1748776255680,-430.0,0.00018904,2]
[363584968,1748776255779,-1190.85,0.00018904,2]
[363584970,1748776255791,-430.0,0.00018904,2]
[363584972,1748776255801,-430.0,0.00018904,2]
[363584974,1748776255811,-430.0,0.00018904,2]
[363584976,1748776255821,-461.65,0.00018904,2]
[363584978,1748776255830,-430.0,0.00018904,2]
[363584980,1748776255840,-430.0,0.00018904,2]
[363584982,1748776255849,-430.0,0.00018904,2]
[363584984,1748776255860,-430.0,0.00018904,2]
[363584986,1748776255871,-515.48,0.00018904,2]
[363584988,1748776255880,-430.0,0.00018904,2]
[363584990,1748776255890,-430.0,0.00018904,2]
[363584992,1748776255900,-912.63,0.00018904,2]
[363584994,1748776255910,-430.0,0.00018904,2]
[363584996,1748776255920,-707.93,0.00018904,2]
[363584998,1748776255930,-1578.39,0.00018904,2]
[363585000,1748776255940,-977.32,0.00018904,2]
[363585002,1748776255950,-430.0,0.00018904,2]
[363585005,1748776255959,-430.0,0.00018904,2]
[363585006,1748776255969,-1118.68,0.00018904,2]
[363585008,1748776255979,-817.55931874,0.00019072,2]
[363585010,1748776255988,-456.17,0.00019178,2]
[363585012,1748776255997,-430.0,0.00019178,2]
[363585014,1748776256007,-500.0,0.00019178,2]
[363585016,1748776256016,-500.0,0.00019178,2]
[363585018,1748776256026,-500.0,0.00019178,2]
[363585020,1748776256035,-500.0,0.00019178,2]
[363585022,1748776256045,-500.0,0.00019178,2]
[363585024,1748776256054,-500.0,0.00019178,2]
[363585026,1748776256064,-500.0,0.00019178,2]
[363585029,1748776256073,-500.0,0.00019178,2]
[363585030,1748776256083,-500.0,0.00019178,2]
[363585032,1748776256092,-500.0,0.00019178,2]
[363585035,1748776256102,-235.60665755,0.00019178,2]
[363585036,1748776256112,-500.0,0.00019178,2]
[363585038,1748776256122,-500.0,0.00019178,2]
[363585040,1748776256132,-500.0,0.00019178,2]
[363585042,1748776256145,-500.0,0.00019178,2]
[363585044,1748776256155,-500.0,0.00019178,2]
[363585046,1748776256165,-500.0,0.00019178,2]
[363585048,1748776256175,-400.0,0.00019178,2]
[363585050,1748776256185,-500.0,0.00019178,2]
[363585052,1748776256195,-430.0,0.00019178,2]
[363585054,1748776256205,-430.0,0.00019178,2]
[363585056,1748776256218,-689.6,0.00019178,2]
[363585058,1748776256228,-942.84,0.00019178,2]
[363585060,1748776256238,-666.8,0.00019178,2]
[363585061,1748776256248,-819.66,0.00019178,2]
[363585062,1748776256258,-372.43,0.00019178,2]
[363585063,1748776256268,-1190.85,0.00019178,2]
[363585064,1748776256278,-430.0,0.00019178,2]
[363585065,1748776256287,-430.0,0.00019178,2]
[363585067,1748776256298,-430.0,0.00019178,2]
[363585069,1748776256309,-461.65,0.00019178,2]
[363585071,1748776256319,-430.0,0.00019178,2]
[363585073,1748776256329,-430.0,0.00019178,2]
[363585075,1748776256339,-430.0,0.00019178,2]
[363585077,1748776256349,-430.0,0.00019178,2]
[363585079,1748776256359,-515.48,0.00019178,2]
[363585081,1748776256370,-530.26,0.00019178,2]
[363585083,1748776256379,-430.0,0.00019178,2]
[363585086,1748776256389,-912.63,0.00019178,2]
[363585088,1748776256398,-430.0,0.00019178,2]
[363585090,1748776256408,-707.93,0.00019178,2]
[363585092,1748776256418,-1578.39,0.00019178,2]
[363585093,1748776256426,-977.32,0.00019178,2]
[363585095,1748776256438,-430.0,0.00019178,2]
[363585098,1748776256448,-430.0,0.00019178,2]
[363585099,1748776256458,-430.0,0.00019178,2]
[363585102,1748776256468,-1118.68,0.00019178,2]
[363585103,1748776256478,-151.0,0.00019178,2]
[363585106,1748776256488,-175.381347,0.00019178,2]
[363585107,1748776256498,-156.587,0.00019233,2]
[363585110,1748776256508,-162.380719,0.00019288,2]
[363585112,1748776256519,-5000.0,0.000193,3]
[363585113,1748776256528,-817.55931874,0.00019314,2]
[363585116,1748776256538,-168.3888056,0.00019343,2]
[363585118,1748776256547,-174.61919141,0.00019398,2]
[363585120,1748776256556,-430.0,0.00019452,2]
[363585122,1748776256566,-430.0,0.00019452,2]
[363585123,1748776256575,-689.6,0.00019452,2]
[363585125,1748776256584,-942.84,0.00019452,2]
[363585127,1748776256594,-666.8,0.00019452,2]
[363585129,1748776256603,-819.66,0.00019452,2]
[363585131,1748776256613,-1190.85,0.00019452,2]
[363585133,1748776256623,-430.0,0.00019452,2]
[363585136,1748776256632,-430.0,0.00019452,2]
[363585138,1748776256640,-430.0,0.00019452,2]
[363585140,1748776256649,-461.65,0.00019452,2]
[363585142,1748776256657,-430.0,0.00019452,2]
[363585143,1748776256666,-430.0,0.00019452,2]
[363585145,1748776256674,-430.0,0.00019452,2]
[363585147,1748776256683,-430.0,0.00019452,2]
[363585149,1748776256694,-515.48,0.00019452,2]
[363585151,1748776256702,-430.0,0.00019452,2]
[363585153,1748776256711,-912.63,0.00019452,2]
[363585155,1748776256720,-430.0,0.00019452,2]
[363585157,1748776256729,-707.93,0.00019452,2]
[363585159,1748776256737,-1578.39,0.00019452,2]
[363585161,1748776256745,-977.32,0.00019452,2]
[363585163,1748776256753,-430.0,0.00019452,2]
[363585165,1748776256760,-1118.68,0.00019452,2]
[363585167,1748776256770,-181.08010149,0.00019453,2]
[363585169,1748776256779,-187.78006525,0.00019508,2]
[363585171,1748776256788,-817.55931874,0.00019555,2]
[363585173,1748776256798,-194.72792766,0.00019563,2]
[363585175,1748776256808,-489.513,0.0001959,2]
[363585177,1748776256817,-201.93286099,0.00019618,2]
[363585179,1748776256827,-209.40437684,0.00019673,2]
[363585181,1748776256838,-430.0,0.00019726,2]
[363585183,1748776256847,-689.6,0.00019726,2]
[363585185,1748776256857,-942.84,0.00019726,2]
[363585187,1748776256868,-666.8,0.00019726,2]
[363585189,1748776256877,-819.66,0.00019726,2]
[363585191,1748776256887,-1190.85,0.00019726,2]
[363585193,1748776256897,-430.0,0.00019726,2]
[363585195,1748776256906,-430.0,0.00019726,2]
[363585197,1748776256917,-430.0,0.00019726,2]
[363585199,1748776256927,-461.65,0.00019726,2]
[363585201,1748776256936,-430.0,0.00019726,2]
[363585203,1748776256946,-430.0,0.00019726,2]
[363585206,1748776256957,-430.0,0.00019726,2]
[363585208,1748776256967,-264.1,0.00019726,2]
[363585210,1748776256977,-515.48,0.00019726,2]
[363585212,1748776256987,-430.0,0.00019726,2]
[363585214,1748776256996,-912.63,0.00019726,2]
[363585216,1748776257006,-430.0,0.00019726,2]
[363585218,1748776257017,-707.93,0.00019726,2]
[363585220,1748776257027,-1578.39,0.00019726,2]
[363585222,1748776257036,-977.32,0.00019726,2]
[363585225,1748776257047,-210.75496981,0.00019726,2]
[363585226,1748776257056,-1118.68,0.00019726,2]
[363585228,1748776257066,-217.15233878,0.00019728,2]
[363585231,1748776257076,-225.18697532,0.00019783,2]
[363585233,1748776257086,-817.55931874,0.00019797,2]
[363585235,1748776257096,-233.51889341,0.00019838,2]
[363585237,1748776257106,-157.66714926,0.00019893,2]
[363585239,1748776257117,-422.03,0.000199,2]
[363585241,1748776257126,-150.79,0.00019949,2]
[363585243,1748776257136,-156.305,0.00019951,2]
[363585245,1748776257150,-150.0,0.00019951,2]
[363585247,1748776257160,-2227.0,0.00019951,2]
[363585249,1748776257170,-207.227,0.00019951,2]
[363585251,1748776257179,-500.0,0.00019964,2]
[363585253,1748776257191,-2842.0,0.0002,2]
[363585255,1748776257200,-430.0,0.0002,2]
[363585257,1748776257210,-689.6,0.0002,2]
[363585259,1748776257220,-942.84,0.0002,2]
[363585261,1748776257230,-666.8,0.0002,2]
[363585263,1748776257240,-819.66,0.0002,2]
[363585265,1748776257249,-1190.85,0.0002,2]
[363585267,1748776257258,-430.0,0.0002,2]
[363585269,1748776257268,-294.23,0.0002,2]
[363585271,1748776257280,-430.0,0.0002,2]
[363585273,1748776257289,-461.65,0.0002,2]
[363585275,1748776257298,-430.0,0.0002,2]
[363585277,1748776257308,-430.0,0.0002,2]
[363585279,1748776257318,-430.0,0.0002,2]
[363585281,1748776257329,-515.48,0.0002,2]
[363585282,1748776257339,-430.0,0.0002,2]
[363585283,1748776257354,-912.63,0.0002,2]
[363585284,1748776257367,-430.0,0.0002,2]
[363585285,1748776257378,-707.93,0.0002,2]
[363585286,1748776257388,-1578.39,0.0002,2]
[363585287,1748776257398,-977.32,0.0002,2]
[363585288,1748776257408,-1118.68,0.0002,2]
[363585289,1748776257420,-817.55931874,0.00020038,2]
[363585290,1748776257430,-500.0,0.00020127,2]
[363585291,1748776257440,-523.685503,0.00020187,2]
[363585292,1748776257450,-689.6,0.00020273,2]
[363585293,1748776257462,-942.84,0.00020273,2]
[363585294,1748776257473,-666.8,0.00020273,2]
[363585295,1748776257482,-819.66,0.00020273,2]
[363585296,1748776257492,-1190.85,0.00020273,2]
[363585297,1748776257502,-430.0,0.00020273,2]
[363585298,1748776257512,-430.0,0.00020273,2]
[363585299,1748776257522,-461.65,0.00020273,2]
[363585300,1748776257531,-516.16071537,0.00020273,2]
[363585301,1748776257541,-430.0,0.00020273,2]
[363585302,1748776257551,-430.0,0.00020273,2]
[363585303,1748776257563,-515.48,0.00020273,2]
[363585304,1748776257573,-430.0,0.00020273,2]
[363585305,1748776257583,-912.63,0.00020273,2]
[363585306,1748776257594,-430.0,0.00020273,2]
[363585307,1748776257605,-707.93,0.00020273,2]
[363585308,1748776257615,-1578.39,0.00020273,2]
[363585309,1748776257625,-977.32,0.00020273,2]
[363585310,1748776257644,-1118.68,0.00020273,2]
[363585311,1748776257654,-817.55931874,0.00020279,3]
[363585312,1748776257664,-817.55931874,0.00020521,3]
[363585313,1748776257755,-689.6,0.00020547,2]
[363585314,1748776257766,-942.84,0.00020547,2]
[363585315,1748776257776,-666.8,0.00020547,2]
[363585316,1748776257786,-819.66,0.00020547,2]
[363585317,1748776257795,-1190.85,0.00020547,2]
[363585318,1748776257805,-430.0,0.00020547,2]
[363585319,1748776257814,-430.0,0.00020547,2]
[363585320,1748776257824,-461.65,0.00020547,2]
[363585321,1748776257835,-430.0,0.00020547,2]
[363585322,1748776257844,-430.0,0.00020547,2]
[363585323,1748776257854,-515.48,0.00020547,2]
[363585324,1748776257865,-430.0,0.00020547,2]
[363585325,1748776257875,-912.63,0.00020547,2]
[363585326,1748776257885,-430.0,0.00020547,2]
[363585327,1748776257896,-707.93,0.00020547,2]
[363585328,1748776257905,-1578.39,0.00020547,2]
[363585329,1748776257916,-977.32,0.00020547,2]
[363585330,1748776257926,-1118.68,0.00020547,2]
[363585331,1748776257935,-481.97,0.000206,2]
[363585332,1748776257946,-4092.81,0.000206,2]
[363585333,1748776257955,-35915.15,0.000206,2]
[363585334,1748776257965,-434.88,0.000206,2]
[363585336,1748776257975,-817.55931874,0.00020762,3]
[363585337,1748776257986,-689.6,0.00020821,2]
[363585338,1748776257995,-942.84,0.00020821,2]
[363585339,1748776258006,-666.8,0.00020821,2]
[363585340,1748776258015,-819.66,0.00020821,2]
[363585341,1748776258024,-1190.85,0.00020821,2]
[363585342,1748776258034,-430.0,0.00020821,2]
[363585343,1748776258043,-430.0,0.00020821,2]
[363585344,1748776258053,-461.65,0.00020821,2]
[363585345,1748776258063,-430.0,0.00020821,2]
[363585346,1748776258072,-430.0,0.00020821,2]
[363585347,1748776258085,-515.48,0.00020821,2]
[363585348,1748776258095,-430.0,0.00020821,2]
[363585349,1748776258106,-912.63,0.00020821,2]
[363585350,1748776258116,-430.0,0.00020821,2]
[363585351,1748776258125,-707.93,0.00020821,2]
[363585352,1748776258135,-1578.39,0.00020821,2]
[363585353,1748776258150,-977.32,0.00020821,2]
[363585354,1748776258160,-1118.68,0.00020821,2]
[363585355,1748776258170,-151.0,0.000209,3]
[363585356,1748776258181,-150.0,0.00021,2]
[363585357,1748776258191,-817.55931874,0.00021003,4]
[363585358,1748776258201,-689.6,0.00021095,2]
[363585359,1748776258212,-942.84,0.00021095,2]
[363585360,1748776258223,-666.8,0.00021095,2]
[363585361,1748776258233,-819.66,0.00021095,2]
[363585362,1748776258243,-1190.85,0.00021095,2]
[363585363,1748776258252,-430.0,0.00021095,2]
[363585364,1748776258262,-430.0,0.00021095,2]
[363585365,1748776258272,-461.65,0.00021095,2]
[363585366,1748776258281,-559.2,0.00021095,2]
[363585367,1748776258291,-430.0,0.00021095,2]
[363585368,1748776258301,-515.48,0.00021095,2]
[363585369,1748776258311,-430.0,0.00021095,2]
[363585370,1748776258321,-912.63,0.00021095,2]
[363585371,1748776258332,-158.8,0.00021095,2]
[363585372,1748776258342,-707.93,0.00021095,2]
[363585373,1748776258351,-1578.39,0.00021095,2]
[363585374,1748776258360,-977.32,0.00021095,2]
[363585375,1748776258370,-1118.68,0.00021095,2]
[363585376,1748776258381,-817.55931874,0.00021245,4]
[363585377,1748776258390,-19103.10174,0.00021368,2]
[363585378,1748776258400,-689.6,0.00021369,2]
[363585379,1748776258410,-942.84,0.00021369,2]
[363585380,1748776258420,-666.8,0.00021369,2]
[363585381,1748776258429,-819.66,0.00021369,2]
[363585382,1748776258439,-1190.85,0.00021369,2]
[363585383,1748776258450,-430.0,0.00021369,2]
[363585384,1748776258460,-430.0,0.00021369,2]
[363585385,1748776258469,-461.65,0.00021369,2]
[363585386,1748776258479,-430.0,0.00021369,2]
[363585387,1748776258490,-515.48,0.00021369,2]
[363585388,1748776258500,-430.0,0.00021369,2]
[363585389,1748776258510,-912.63,0.00021369,2]
[363585390,1748776258519,-707.93,0.00021369,2]
[363585391,1748776258529,-1578.39,0.00021369,2]
[363585392,1748776258538,-977.32,0.00021369,2]
[363585393,1748776258548,-1118.68,0.00021369,2]
[363585394,1748776258558,-151.0,0.000214,4]
[363585395,1748776258568,-151.0,0.000214,3]
[363585396,1748776258578,-817.55931874,0.00021486,5]
[363585397,1748776258587,-689.6,0.00021643,2]
[363585398,1748776258597,-942.84,0.00021643,2]
[363585399,1748776258607,-666.8,0.00021643,2]
[363585400,1748776258617,-819.66,0.00021643,2]
[363585401,1748776258628,-1190.85,0.00021643,2]
[363585402,1748776258638,-430.0,0.00021643,2]
[363585403,1748776258647,-430.0,0.00021643,2]
[363585404,1748776258657,-461.65,0.00021643,2]
[363585405,1748776258667,-430.0,0.00021643,2]
[363585406,1748776258677,-515.48,0.00021643,2]
[363585407,1748776258687,-483.00020743,0.00021643,2]
[363585408,1748776258697,-912.63,0.00021643,2]
[363585409,1748776258706,-707.93,0.00021643,2]
[363585410,1748776258716,-1578.39,0.00021643,2]
[363585411,1748776258726,-977.32,0.00021643,2]
[363585412,1748776258736,-1118.68,0.00021643,2]
[363585413,1748776258746,-817.55931874,0.00021728,5]
[363585414,1748776258756,-4092.81,0.000219,2]
[363585415,1748776258765,-434.88,0.000219,2]
[363585416,1748776258775,-500.0,0.00021917,2]
[363585417,1748776258784,-689.6,0.00021917,2]
[363585418,1748776258794,-942.84,0.00021917,2]
[363585419,1748776258804,-666.8,0.00021917,2]
[363585420,1748776258814,-819.66,0.00021917,2]
[363585421,1748776258824,-1190.85,0.00021917,2]
[363585422,1748776258833,-430.0,0.00021917,2]
[363585423,1748776258843,-430.0,0.00021917,2]
[363585424,1748776258852,-461.65,0.00021917,2]
[363585425,1748776258861,-430.0,0.00021917,2]
[363585426,1748776258871,-515.48,0.00021917,2]
[363585427,1748776258881,-912.63,0.00021917,2]
[363585428,1748776258890,-707.93,0.00021917,2]
[363585429,1748776258899,-1578.39,0.00021917,2]
[363585430,1748776258910,-977.32,0.00021917,2]
[363585431,1748776258919,-1118.68,0.00021917,2]
[363585432,1748776258929,-817.55931874,0.00021969,6]
[363585433,1748776258940,-481.97,0.00022,7]
[363585434,1748776258949,-212.80060342,0.00022,7]
[363585435,1748776258959,-140873.59,0.00022,7]
[363585436,1748776258970,-61000.0,0.00022,5]
[363585438,1748776258979,-173.0,0.00022,2]
[363585439,1748776258989,-333.0,0.00022,2]
[363585440,1748776258998,-500.0,0.00022156,2]
[363585441,1748776259007,-689.6,0.00022191,2]
[363585442,1748776259017,-942.84,0.00022191,2]
[363585443,1748776259027,-666.8,0.00022191,2]
[363585444,1748776259037,-819.66,0.00022191,2]
[363585445,1748776259047,-1190.85,0.00022191,2]
[363585446,1748776259057,-430.0,0.00022191,2]
[363585447,1748776259066,-555.01261158,0.00022191,2]
[363585448,1748776259076,-461.65,0.00022191,2]
[363585449,1748776259085,-430.0,0.00022191,2]
[363585450,1748776259096,-515.48,0.00022191,2]
[363585451,1748776259105,-912.63,0.00022191,2]
[363585452,1748776259116,-707.93,0.00022191,2]
[363585453,1748776259126,-1578.39,0.00022191,2]
[363585454,1748776259136,-977.32,0.00022191,2]
[363585455,1748776259149,-151.0,0.00022191,7]
[363585456,1748776259159,-1118.68,0.00022191,2]
[363585457,1748776259168,-333.0,0.00022192,7]
[363585458,1748776259178,-817.55931874,0.0002221,6]
[363585459,1748776259190,-151.0,0.000223,10]
[363585460,1748776259201,-35915.15,0.000223,2]
[363585461,1748776259210,-151.0,0.000223,7]
[363585462,1748776259220,-212.18644,0.000223,2]
[363585463,1748776259230,-212.18644,0.000223,2]
[363585464,1748776259240,-151.0,0.000223,7]
[363585465,1748776259250,-151.0,0.000223,7]
[363585466,1748776259260,-817.55931874,0.00022452,7]
[363585467,1748776259270,-151.0,0.00022465,7]
[363585468,1748776259279,-151.0,0.00022465,7]
[363585469,1748776259298,-151.0,0.00022465,7]
[363585470,1748776259308,-151.0,0.00022465,7]
[363585471,1748776259318,-540.92288429,0.00022465,2]
[363585472,1748776259328,-151.0,0.00022465,7]
[363585473,1748776259338,-689.6,0.00022465,2]
[363585474,1748776259347,-942.84,0.00022465,2]
[363585475,1748776259356,-666.8,0.00022465,2]
[363585476,1748776259367,-819.66,0.00022465,2]
[363585477,1748776259377,-1190.85,0.00022465,2]
[363585478,1748776259388,-395.04,0.00022465,2]
[363585479,1748776259398,-461.65,0.00022465,2]
[363585480,1748776259407,-430.0,0.00022465,2]
[363585481,1748776259418,-515.48,0.00022465,2]
[363585482,1748776259427,-912.63,0.00022465,2]
[363585483,1748776259437,-707.93,0.00022465,2]
[363585484,1748776259447,-1578.39,0.00022465,2]
[363585485,1748776259456,-977.32,0.00022465,2]
[363585486,1748776259466,-1118.68,0.00022465,2]
[363585487,1748776259476,-151.0,0.00022467,7]
[363585488,1748776259486,-207.10190885,0.00022467,2]
[363585489,1748776259496,-900.0,0.00022467,2]
[363585490,1748776259588,-900.0,0.00022467,2]
[363585491,1748776259599,-900.0,0.00022467,2]
[363585492,1748776259609,-900.0,0.00022467,2]
[363585493,1748776259621,-207.4,0.00022467,2]
[363585494,1748776259631,-900.0,0.00022467,2]
[363585495,1748776259642,-900.0,0.00022467,2]
[363585496,1748776259652,-900.0,0.00022467,2]
[363585497,1748776259662,-898.81279037,0.00022467,2]
[363585498,1748776259672,-510.78,0.00022513,2]
[363585499,1748776259682,-817.55931874,0.00022693,7]
[363585500,1748776259692,-1266.1,0.000227,7]
[363585501,1748776259702,-689.65,0.00022739,2]
[363585502,1748776259711,-942.96,0.00022739,2]
[363585503,1748776259721,-667.01606015,0.00022739,2]
[363585504,1748776259731,-819.8975438,0.00022739,2]
[363585505,1748776259741,-1191.04553676,0.00022739,2]
[363585506,1748776259751,-461.69333701,0.00022739,2]
[363585507,1748776259760,-208.55,0.00022739,2]
[363585508,1748776259770,-515.61982548,0.00022739,2]
[363585509,1748776259780,-912.78359613,0.00022739,2]
[363585510,1748776259790,-708.16,0.00022739,2]
[363585511,1748776259799,-1578.59,0.00022739,2]
[363585512,1748776259810,-977.36,0.00022739,2]
[363585513,1748776259819,-1118.72,0.00022739,2]
[363585514,1748776259829,-306.0,0.00022767,2]
[363585515,1748776259838,-817.55931874,0.00022934,8]
[363585516,1748776259848,-151.0,0.00022935,7]
[363585517,1748776259858,-151.0,0.00022935,7]
[363585518,1748776259869,-153.106816,0.00022935,7]
[363585519,1748776259879,-150.0,0.00022951,2]
[363585520,1748776259889,-591.626,0.00022951,2]
[363585521,1748776259899,-2000.0,0.00023,2]
[363585522,1748776259909,-151.0,0.00023,7]
[363585523,1748776259920,-140873.59,0.00023,7]
[363585524,1748776259930,-122938.48,0.00023,6]